Workbook

Sheet Výhled MČ Praha 18
A2: Střednědobý výhled rozpočtu (§ 3 odst. 1 zákona č. 250/2000 Sb.) MČ Praha 18 do r. 2025 | J2: v tis. Kč (bez deset. míst)
A3: Název položky | B3: Skut. 2015 | C3: Skut. 2016 | D3: Skut. 2017 | E3: Skut. 2018 | F3: Oček. skut. 2019 | G3: Oček. skut. 2020 | H3: RV 2021 | I3: RV 2022 | J3: RV 2023 | K3: RV 2024 | L3: RV 2025
A5: Daňové příjmy - třída 1 | B5: 23683 | C5: 23445 | D5: 28741 | E5: 31809 | F5: 34234 | G5: 46415 | H5: 47000 | I5: 47000 | J5: 47000 | K5: 47000 | L5: 47000
A6: Nedaňové příjmy - třída 2 | B6: 8237 | C6: 7561 | D6: 7551 | E6: 6560 | F6: 6002 | G6: 1205 | H6: 7000 | I6: 7500 | J6: 8000 | K6: 8000 | L6: 8000
A7: Kapitálové příjmy - třída 3 | B7: 5750 | C7: 4250 | D7: 300 | E7: 5257 | F7: 2300 | G7: 0 | H7: 0 | I7: 0 | J7: 0 | K7: 0 | L7: 0
A8: Vlastní příjmy | B8: =SUM(B5:B7) -> 37670 | C8: =SUM(C5:C7) -> 35256 | D8: 36592 | E8: 43626 | F8: 42536 | G8: 47620 | H8: 54000 | I8: 54500 | J8: 55000 | K8: 55000 | L8: =SUM(L5:L7) -> 55000
A10: Přijaté transfery (po konsolidaci) -třída 4 | B10: 143722 | C10: 128099 | D10: 175679 | E10: 223992 | F10: 364417 | G10: 122988 | H10: 150000 | I10: 155000 | J10: 160000 | K10: 175000 | L10: 180000
A11: v tom ve SR: a) FVz z rozpočtu vlastního HMP (ZJ 921) | B11: 54800 | C11: 56715 | D11: 59528 | E11: 62620 | F11: 42408 | G11: 75497 | H11: 78000 | I11: 80000 | J11: 82000 | K11: 86000 | L11: 88000
A12: b) příspěvek na výkon státní správy (ZJ 900) | B12: 15638 | C12: 16373 | D12: 17799 | E12: 18936 | F12: 20678 | G12: 22491 | H12: 23000 | I12: 24000 | J12: 25000 | K12: 26000 | L12: 27000
A13: Příjmy celkem | B13: =B8+B10 -> 181392 | C13: =C8+C10 -> 163355 | D13: 212271 | E13: 267618 | F13: 406953 | G13: 170608 | H13: 204000 | I13: 209500 | J13: 215000 | K13: 230000 | L13: =L8+L10 -> 235000
A15: Provozní výdaje (po konsolidaci) - třída 5 | B15: 118277 | C15: 121083 | D15: 130620 | E15: 144542 | F15: 162829 | G15: 155387 | H15: 160000 | I15: 165000 | J15: 170000 | K15: 175000 | L15: 180000
A16: Kapitálové výdaje - třída 6 | B16: 48910 | C16: 32452 | D16: 48660 | E16: 136110 | F16: 156883 | G16: 35020 | H16: 40000 | I16: 40000 | J16: 45000 | K16: 50000 | L16: 50000
A17: Výdaje celkem | B17: =SUM(B15:B16) -> 167187 | C17: =SUM(C15:C16) -> 153535 | D17: 179280 | E17: 280652 | F17: 319712 | G17: 190407 | H17: 200000 | I17: 205000 | J17: 215000 | K17: 225000 | L17: =SUM(L15:L16) -> 230000
A19: Výsledek hospodaření ( - schodek, + přebytek) | B19: =B13-B17 -> 14205 | C19: =C13-C17 -> 9820 | D19: 32991 | E19: -13034 | F19: 87241 | G19: -19799 | H19: 4000 | I19: 4500 | J19: 0 | K19: 5000 | L19: =L13-L17 -> 5000
A22: Úhrada dlouhodobých fin. závazků - pol. 8xxx
A23: Úhrada dlouhodobých fin. závazků - pol. 5347 | B23: 5625 | C23: 5625 | D23: 5625 | E23: 5625 | F23: 5625 | G23: 5625 | H23: 5625 | I23: 5625 | J23: 8000 | K23: 8000 | L23: 8000
